fUSD/lending_fUSD_20240628
["ID","MTS","AMOUNT","RATE_DAILY","PERIOD"]
[330575693,1719581515400,-890.97,0.00022136,3]
[330575694,1719581515409,-544.49,0.00022136,3]
[330575695,1719581515421,-1135.0,0.00022136,3]
[330575696,1719581515432,-645.74,0.00022136,3]
[330575697,1719581515441,-1024.34,0.00022136,3]
[330575698,1719581515451,-500.0,0.00022136,3]
[330575699,1719581515460,-500.0,0.00022136,3]
[330575700,1719581515471,-793.23,0.00022136,3]
[330575701,1719581515481,-500.0,0.00022136,3]
[330575702,1719581515491,-857.23,0.00022136,3]
[330575703,1719581515502,-500.0,0.00022136,3]
[330575704,1719581515511,-2435.24,0.00022136,3]
[330575705,1719581515521,-1164.19,0.00022136,3]
[330575706,1719581515530,-500.0,0.00022136,3]
[330575707,1719581515540,-573.25,0.00022136,3]
[330575708,1719581515549,-1235.12,0.00022136,3]
[330575709,1719581515558,-500.0,0.00022136,3]
[330575710,1719581515568,-500.0,0.00022136,3]
[330575711,1719581515578,-507.95,0.00022136,3]
[330575712,1719581515587,-500.0,0.00022136,3]
[330575713,1719581515597,-500.0,0.00022136,3]
[330575714,1719581515606,-546.48,0.00022136,3]
[330575715,1719581515616,-1497.15,0.00022136,3]
[330575716,1719581515625,-500.0,0.00022136,3]
[330575717,1719581515635,-1025.01,0.00022136,3]
[330575718,1719581515644,-500.0,0.00022136,3]
[330575719,1719581515654,-1511.59,0.00022136,3]
[330575720,1719581515663,-667.81,0.00022136,3]
[330575721,1719581515672,-672.89,0.00022136,3]
[330575722,1719581515681,-500.0,0.00022136,3]
[330575723,1719581515691,-500.0,0.00022136,3]
[330575724,1719581515700,-1143.19,0.00022136,3]
[330575725,1719581515709,-500.0,0.00022136,3]
[330575726,1719581515719,-500.0,0.00022136,3]
[330575727,1719581515729,-983.64,0.00022136,3]
[330575728,1719581515738,-500.0,0.00022136,3]
[330575729,1719581515748,-500.0,0.00022136,3]
[330575730,1719581515758,-500.0,0.00022136,3]
[330575731,1719581515767,-1110.23,0.00022136,3]
[330575732,1719581515778,-1270.28,0.00022136,3]
[330575733,1719581515791,-546.39,0.00022136,3]
[330575734,1719581515800,-500.0,0.00022136,3]
[330575735,1719581515809,-585.88,0.00022136,3]
[330575736,1719581515819,-500.0,0.00022136,3]
[330575737,1719581515828,-500.0,0.00022136,3]
[330575738,1719581515838,-500.0,0.00022136,3]
[330575739,1719581515847,-780.76,0.00022136,3]
[330575740,1719581515856,-607.67337503,0.00022136,3]
[330575741,1719581515865,-500.0,0.00022136,3]
[330575742,1719581515875,-500.0,0.00022136,3]
[330575743,1719581515884,-500.0,0.00022136,3]
[330575744,1719581515893,-500.0,0.00022136,3]
[330575745,1719581515903,-500.0,0.00022136,3]
[330575746,1719581515912,-500.0,0.00022136,3]
[330575747,1719581515921,-500.0,0.00022136,3]
[330575748,1719581515931,-647.18,0.00022136,3]
[330575749,1719581515941,-962.53,0.00022136,3]
[330575750,1719581515950,-500.0,0.00022136,3]
[330575751,1719581515959,-866.59,0.00022136,3]
[330575752,1719581515969,-500.0,0.00022136,3]
[330575753,1719581515978,-1164.07,0.00022136,3]
[330575754,1719581515988,-500.0,0.00022136,3]
[330575755,1719581515997,-568.2,0.00022136,3]
[330575756,1719581516007,-637.91,0.00022136,3]
[330575757,1719581516016,-509.2,0.00022136,3]
[330575758,1719581516025,-500.0,0.00022136,3]
[330575759,1719581516035,-670.28,0.00022136,3]
[330575760,1719581516044,-1019.47,0.00022136,3]
[330575761,1719581516053,-500.0,0.00022136,3]
[330575762,1719581516063,-500.0,0.00022136,3]
[330575763,1719581516073,-1016.18,0.00022136,3]
[330575764,1719581516083,-500.0,0.00022136,3]
[330575765,1719581516092,-853.39,0.00022136,3]
[330575766,1719581516103,-500.0,0.00022136,3]
[330575767,1719581516113,-500.0,0.00022136,3]
[330575768,1719581516123,-175.70538992,0.00022136,3]
[330575769,1719581516133,-1356.44,0.00022136,3]
[330575770,1719581516143,-3050.86,0.00022136,3]
[330575771,1719581516152,-500.0,0.00022136,3]
[330575772,1719581516161,-500.0,0.00022136,3]
[330575773,1719581516170,-500.0,0.00022136,3]
[330575774,1719581516179,-986.96,0.00022136,3]
[330575775,1719581516189,-500.0,0.00022136,3]
[330575776,1719581516198,-200.0,0.00022136,3]
[330575777,1719581516207,-500.0,0.00022136,3]
[330575778,1719581516217,-500.0,0.00022136,3]
[330575779,1719581516226,-796.45,0.00022136,3]
[330575780,1719581516236,-985.06,0.00022136,3]
[330575781,1719581516245,-500.0,0.00022136,3]
[330575782,1719581516254,-500.0,0.00022136,3]
[330575783,1719581516263,-500.0,0.00022136,3]
[330575784,1719581516272,-589.69,0.00022136,3]
[330575785,1719581516281,-982.63,0.00022136,3]
[330575786,1719581516290,-500.0,0.00022136,3]
[330575787,1719581516299,-500.0,0.00022136,3]
[330575788,1719581516308,-500.0,0.00022136,3]
[330575789,1719581516317,-500.0,0.00022136,3]
[330575790,1719581516328,-273.51266251,0.00022136,3]
[330575791,1719581516337,-500.0,0.00022136,3]
[330575792,1719581516346,-500.0,0.00022136,3]
[330575793,1719581516355,-947.64,0.00022136,3]
[330575794,1719581516365,-500.0,0.00022136,3]
[330575795,1719581516374,-1023.07,0.00022136,3]
[330575796,1719581516383,-500.0,0.00022136,3]
[330575797,1719581516393,-1003.72,0.00022136,3]
[330575798,1719581516403,-2689.38,0.00022136,3]
[330575799,1719581516413,-640.9,0.00022136,3]
[330575800,1719581516423,-500.0,0.00022136,3]
[330575801,1719581516437,-902.32,0.00022136,3]
[330575802,1719581516446,-500.0,0.00022136,3]
[330575803,1719581516455,-2932.71,0.00022136,3]
[330575804,1719581516464,-500.0,0.00022136,3]
[330575805,1719581516474,-500.0,0.00022136,3]
[330575806,1719581516483,-500.0,0.00022136,3]
[330575807,1719581516492,-1128.53,0.00022136,3]
[330575808,1719581516501,-500.0,0.00022136,3]
[330575809,1719581516514,-500.0,0.00022136,3]
[330575810,1719581516524,-500.0,0.00022136,3]
[330575811,1719581516534,-939.79,0.00022136,3]
[330575812,1719581516544,-500.0,0.00022136,3]
[330575813,1719581516554,-841.33,0.00022136,3]
[330575814,1719581516564,-1023.86,0.00022136,3]
[330575815,1719581516573,-500.0,0.00022136,3]
[330575816,1719581516585,-500.0,0.00022136,3]
[330575817,1719581516595,-500.0,0.00022136,3]
[330575818,1719581516605,-2025.77,0.00022136,3]
[330575819,1719581516614,-500.0,0.00022136,3]
[330575820,1719581516624,-1081.13,0.00022136,3]
[330575821,1719581516634,-500.0,0.00022136,3]
[330575822,1719581516643,-500.0,0.00022136,3]
[330575823,1719581516653,-500.0,0.00022136,3]
[330575824,1719581516663,-2534.2,0.00022136,3]
[330575825,1719581516672,-677.91,0.00022136,3]
[330575826,1719581516682,-545.92,0.00022136,3]
[330575827,1719581516692,-594.76,0.00022136,3]
[330575828,1719581516701,-983.37,0.00022136,3]
[330575829,1719581516711,-500.0,0.00022136,3]
[330575830,1719581516720,-500.0,0.00022136,3]
[330575831,1719581516729,-1660.71,0.00022136,3]
[330575832,1719581516739,-500.0,0.00022136,3]
[330575833,1719581516748,-1312.32,0.00022136,3]
[330575834,1719581516757,-1407.01,0.00022136,3]
[330575835,1719581516766,-500.0,0.00022136,3]
[330575836,1719581516775,-500.0,0.00022136,3]
[330575837,1719581516785,-569.28,0.00022136,3]
[330575838,1719581516794,-1230.66,0.00022136,3]
[330575839,1719581516803,-558.19,0.00022136,3]
[330575840,1719581516813,-1083.65,0.00022136,3]
[330575841,1719581516823,-500.0,0.00022136,3]
[330575842,1719581516833,-680.97,0.00022136,3]
[330575843,1719581516842,-806.01,0.00022136,3]
[330575844,1719581516852,-2241.04,0.00022136,3]
[330575845,1719581516862,-1222.11,0.00022136,3]
[330575846,1719581516871,-500.0,0.00022136,3]
[330575847,1719581516880,-500.0,0.00022136,3]
[330575848,1719581516890,-2272.28,0.00022136,3]
[330575849,1719581516899,-500.0,0.00022136,3]
[330575850,1719581516909,-1764.98,0.00022136,3]
[330575851,1719581516918,-325.71347524,0.00022136,3]
[330575852,1719581516927,-2235.87,0.00022136,3]
[330575853,1719581516936,-500.0,0.00022136,3]
[330575854,1719581516946,-500.0,0.00022136,3]
[330575855,1719581516955,-500.0,0.00022136,3]
[330575856,1719581516965,-7520.38,0.00022136,3]
[330575857,1719581516974,-1079.69,0.00022136,3]
[330575858,1719581516983,-1833.12,0.00022136,3]
[330575859,1719581516993,-730.49,0.00022136,3]
[330575860,1719581517002,-800.68,0.00022136,3]
[330575861,1719581517012,-500.0,0.00022136,3]
[330575862,1719581517021,-500.0,0.00022136,3]
[330575863,1719581517031,-625.41,0.00022136,3]
[330575864,1719581517040,-1293.07,0.00022136,3]
[330575865,1719581517050,-500.0,0.00022136,3]
[330575866,1719581517060,-1611.83,0.00022136,3]
[330575867,1719581517069,-1335.03,0.00022136,3]
[330575868,1719581517079,-500.0,0.00022136,3]
[330575869,1719581517089,-500.0,0.00022136,3]
[330575870,1719581517099,-500.0,0.00022136,3]
[330575871,1719581517111,-2017.8,0.00022136,3]
[330575872,1719581517122,-1169.99,0.00022136,3]
[330575873,1719581517132,-559.77,0.00022136,3]
[330575874,1719581517142,-500.0,0.00022136,3]
[330575875,1719581517151,-794.53,0.00022136,3]
[330575876,1719581517161,-500.0,0.00022136,3]
[330575877,1719581517170,-2287.34,0.00022136,3]
[330575878,1719581517180,-500.0,0.00022136,3]
[330575879,1719581517190,-598.26,0.00022136,3]
[330575880,1719581517199,-500.0,0.00022136,3]
[330575881,1719581517209,-848.75,0.00022136,3]
[330575882,1719581517219,-969.34,0.00022136,3]
[330575883,1719581517228,-500.0,0.00022136,3]
[330575884,1719581517237,-721.51,0.00022136,3]
[330575885,1719581517247,-250.0,0.00022136,3]
[330575886,1719581517257,-1520.14,0.00022136,3]
[330575887,1719581517266,-500.0,0.00022136,3]
[330575888,1719581517275,-574.54,0.00022136,3]
[330575889,1719581517285,-753.07,0.00022136,3]
[330575890,1719581517294,-4951.63,0.00022136,3]
[330575891,1719581517303,-1212.49,0.00022136,3]
[330575892,1719581517313,-2156.22,0.00022136,3]
[330575893,1719581517322,-500.0,0.00022136,3]
[330575894,1719581517333,-3115.92,0.00022136,3]
[330575895,1719581517342,-500.0,0.00022136,3]
[330575896,1719581517351,-500.0,0.00022136,3]
[330575897,1719581517360,-500.0,0.00022136,3]
[330575898,1719581517369,-1938.62,0.00022136,3]
[330575899,1719581517378,-752.65,0.00022136,3]
[330575900,1719581517387,-2619.06,0.00022136,3]
[330575901,1719581517397,-1558.14,0.00022136,3]
[330575902,1719581517406,-500.0,0.00022136,3]
[330575903,1719581517416,-595.43,0.00022136,3]
[330575904,1719581517431,-1783.25,0.00022136,3]
[330575905,1719581517440,-739.78,0.00022136,3]
[330575906,1719581517449,-500.0,0.00022136,3]
[330575907,1719581517458,-500.0,0.00022136,3]
[330575908,1719581517470,-500.0,0.00022136,3]
[330575909,1719581517479,-500.0,0.00022136,3]
[330575910,1719581517489,-500.0,0.00022136,3]
[330575911,1719581517500,-565.44,0.00022136,3]
[330575912,1719581517510,-591.89,0.00022136,3]
[330575913,1719581517519,-998.56,0.00022136,3]
[330575914,1719581517530,-500.0,0.00022136,3]
[330575915,1719581517539,-500.0,0.00022136,3]
[330575916,1719581517548,-500.0,0.00022136,3]
[330575917,1719581517557,-1690.37,0.00022136,3]
[330575918,1719581517567,-1544.97,0.00022136,3]
[330575919,1719581517578,-500.0,0.00022136,3]
[330575920,1719581517588,-744.25,0.00022136,3]
[330575921,1719581517598,-1759.06,0.00022136,3]
[330575922,1719581517607,-2970.47,0.00022136,3]
[330575923,1719581517617,-500.0,0.00022136,3]
[330575924,1719581517626,-790.85,0.00022136,3]
[330575925,1719581517635,-1315.66,0.00022136,3]
[330575926,1719581517645,-930.55,0.00022136,3]
[330575927,1719581517654,-500.0,0.00022136,3]
[330575928,1719581517664,-1670.71,0.00022136,3]
[330575929,1719581517673,-500.0,0.00022136,3]
[330575930,1719581517682,-1218.88,0.00022136,3]
[330575931,1719581517692,-1189.97,0.00022136,3]
[330575932,1719581517701,-1119.51,0.00022136,3]
[330575933,1719581517711,-500.0,0.00022136,2]
[330575934,1719581517720,-2631.32,0.00022136,3]
[330575935,1719581517860,-750.26,0.00022136,3]
[330575936,1719581517870,-1504.46,0.00022136,3]
[330575937,1719581517880,-500.0,0.00022136,3]
[330575938,1719581517889,-500.0,0.00022136,3]
[330575939,1719581517898,-1597.63,0.00022136,3]
[330575940,1719581517908,-731.52,0.00022136,3]
[330575941,1719581517917,-500.0,0.00022136,3]
[330575942,1719581517927,-1879.32,0.00022136,3]
[330575943,1719581517937,-1301.36,0.00022136,3]
[330575944,1719581517947,-538.76,0.00022136,3]
[330575945,1719581517956,-500.0,0.00022136,3]
[330575946,1719581517965,-500.0,0.00022136,3]
[330575947,1719581517975,-1143.78,0.00022136,3]
[330575948,1719581517984,-500.0,0.00022136,2]
[330575949,1719581517994,-500.0,0.00022136,3]
[330575950,1719581518003,-500.0,0.00022136,3]
[330575951,1719581518013,-500.0,0.00022136,3]
[330575952,1719581518022,-554.8,0.00022136,3]
[330575953,1719581518031,-500.0,0.00022136,3]
[330575954,1719581518041,-2901.03,0.00022136,3]
[330575955,1719581518050,-345.06616611,0.00022136,3]
[330575956,1719581518059,-1548.67,0.00022136,3]
[330575957,1719581518069,-511.8,0.00022136,3]
[330575958,1719581518080,-2485.2,0.00022136,3]
[330575959,1719581518089,-500.0,0.00022136,3]
[330575960,1719581518099,-500.0,0.00022136,3]
[330575961,1719581518108,-531.92,0.00022136,3]
[330575962,1719581518122,-1224.26,0.00022136,3]
[330575963,1719581518131,-1402.6,0.00022136,3]
[330575964,1719581518141,-500.0,0.00022136,3]
[330575965,1719581518150,-500.0,0.00022136,3]
[330575966,1719581518160,-1300.34,0.00022136,3]
[330575967,1719581518169,-980.37,0.00022136,3]
[330575968,1719581518179,-500.0,0.00022136,3]
[330575969,1719581518188,-3943.37,0.00022136,3]
[330575970,1719581518198,-1173.47,0.00022136,3]
[330575971,1719581518207,-500.0,0.00022136,3]
[330575972,1719581518216,-500.0,0.00022136,3]
[330575973,1719581518225,-500.0,0.00022136,3]
[330575974,1719581518235,-2122.78,0.00022136,3]
[330575975,1719581518244,-500.0,0.00022136,3]
[330575976,1719581518253,-700.74,0.00022136,3]
[330575977,1719581518262,-500.0,0.00022136,3]
[330575978,1719581518271,-2694.47,0.00022136,3]
[330575979,1719581518281,-2269.54,0.00022136,3]
[330575980,1719581518290,-1411.57,0.00022136,3]
[330575981,1719581518299,-286.10179698,0.00022136,3]
[330575982,1719581518308,-1915.65,0.00022136,3]
[330575983,1719581518318,-1443.34,0.00022136,3]
[330575984,1719581518331,-1782.46,0.00022136,3]
[330575985,1719581518340,-2259.69,0.00022136,3]
[330575986,1719581518350,-500.0,0.00022136,3]
[330575987,1719581518360,-1144.19,0.00022136,3]
[330575988,1719581518370,-500.0,0.00022136,3]
[330575989,1719581518379,-626.04,0.00022136,3]
[330575990,1719581518389,-1933.95,0.00022136,3]
[330575991,1719581518398,-500.0,0.00022136,3]
[330575992,1719581518407,-1200.64,0.00022136,3]
[330575993,1719581518417,-500.0,0.00022136,3]
[330575994,1719581518427,-500.0,0.00022136,3]
[330575995,1719581518439,-500.0,0.00022136,3]
[330575996,1719581518449,-500.0,0.00022136,3]
[330575997,1719581518458,-1245.79,0.00022136,3]
[330575998,1719581518468,-3679.52,0.00022136,3]
[330575999,1719581518478,-788.2,0.00022136,3]
[330576000,1719581518487,-500.0,0.00022136,3]
[330576001,1719581518496,-1930.1,0.00022136,3]
[330576002,1719581518507,-1520.55,0.00022136,3]
[330576003,1719581518516,-856.29,0.00022136,3]
[330576004,1719581518526,-1084.78,0.00022136,3]
[330576005,1719581518535,-755.66,0.00022136,3]
[330576006,1719581518545,-939.08,0.00022136,3]
[330576007,1719581518554,-500.0,0.00022136,3]
[330576008,1719581518563,-1156.32,0.00022136,3]
[330576009,1719581518573,-500.0,0.00022136,3]
[330576010,1719581518585,-1484.53,0.00022136,3]
[330576011,1719581518595,-819.59,0.00022136,3]
[330576012,1719581518604,-1281.03,0.00022136,3]
[330576013,1719581518614,-1418.89,0.00022136,3]
[330576014,1719581518623,-500.0,0.00022136,3]
[330576015,1719581518633,-500.0,0.00022136,3]
[330576016,1719581518642,-500.0,0.00022136,3]
[330576017,1719581518651,-1394.68,0.00022136,3]
[330576018,1719581518660,-1289.19,0.00022136,3]
[330576019,1719581518670,-854.39,0.00022136,3]
[330576020,1719581518679,-500.0,0.00022136,3]
[330576021,1719581518689,-3187.49,0.00022136,3]
[330576022,1719581518699,-1050.74,0.00022136,3]
[330576023,1719581518709,-1773.83,0.00022136,3]
[330576024,1719581518720,-393.07,0.00022136,3]
[330576025,1719581518730,-500.0,0.00022136,3]
[330576026,1719581518740,-1182.56,0.00022136,3]
[330576027,1719581518750,-606.34,0.00022136,3]
[330576028,1719581518761,-4015.68,0.00022136,3]
[330576029,1719581518772,-1207.66,0.00022136,3]
[330576030,1719581518782,-11118.41,0.00022136,3]
[330576031,1719581518792,-500.0,0.00022136,3]
[330576032,1719581518803,-500.0,0.00022136,3]
[330576033,1719581518813,-1027.22,0.00022136,3]
[330576034,1719581518823,-909.12,0.00022136,3]
[330576035,1719581518834,-500.0,0.00022136,3]
[330576036,1719581518843,-2109.42,0.00022136,3]
[330576037,1719581518853,-500.0,0.00022136,3]
[330576038,1719581518862,-500.0,0.00022136,3]
[330576039,1719581518871,-2224.85,0.00022136,3]
[330576040,1719581518880,-1433.86,0.00022136,3]
[330576041,1719581518891,-180.98914742,0.00022136,3]
[330576042,1719581518900,-500.0,0.00022136,3]
[330576043,1719581518910,-500.0,0.00022136,3]
[330576044,1719581518919,-500.0,0.00022136,3]
[330576045,1719581518929,-500.0,0.00022136,3]
[330576046,1719581518938,-639.12,0.00022136,3]
[330576047,1719581518948,-3373.14,0.00022136,3]
[330576048,1719581518957,-1039.41,0.00022136,3]
[330576049,1719581518967,-525.53,0.00022136,3]
[330576050,1719581518976,-1382.55,0.00022136,3]
[330576051,1719581518985,-500.0,0.00022136,3]
[330576052,1719581518994,-500.0,0.00022136,3]
[330576053,1719581519005,-1766.72,0.00022136,3]
[330576054,1719581519014,-881.88,0.00022136,3]
[330576055,1719581519023,-1305.84,0.00022136,3]
[330576056,1719581519032,-500.0,0.00022136,3]
[330576057,1719581519041,-2429.33,0.00022136,3]
[330576058,1719581519051,-865.58,0.00022136,3]
[330576059,1719581519063,-1690.78,0.00022136,3]
[330576060,1719581519075,-2610.51,0.00022136,3]
[330576061,1719581519087,-500.0,0.00022136,3]
[330576062,1719581519099,-1065.83,0.00022136,3]
[330576063,1719581519109,-3640.69,0.00022136,3]
[330576064,1719581519119,-500.0,0.00022136,3]
[330576065,1719581519128,-500.0,0.00022136,3]
[330576066,1719581519138,-500.0,0.00022136,3]
[330576067,1719581519147,-500.0,0.00022136,3]
[330576068,1719581519156,-6031.77,0.00022136,3]
[330576069,1719581519166,-927.31,0.00022136,3]
[330576070,1719581519175,-500.0,0.00022136,3]
[330576071,1719581519185,-500.0,0.00022136,3]
[330576072,1719581519195,-1027.34,0.00022136,3]
[330576073,1719581519204,-992.66,0.00022136,3]
[330576074,1719581519214,-1368.85,0.00022136,3]
[330576075,1719581519223,-500.0,0.00022136,3]
[330576076,1719581519233,-659.44,0.00022136,3]
[330576077,1719581519242,-661.85,0.00022136,3]
[330576078,1719581519251,-2995.16,0.00022136,3]
[330576079,1719581519260,-1213.4,0.00022136,3]
[330576080,1719581519270,-1126.79,0.00022136,3]
[330576081,1719581519279,-2342.86,0.00022136,3]
[330576082,1719581519289,-1404.38,0.00022136,3]
[330576083,1719581519299,-2099.81,0.00022136,3]
[330576084,1719581519308,-554.59,0.00022136,3]
[330576085,1719581519318,-500.0,0.00022136,3]
[330576086,1719581519328,-1002.11,0.00022136,3]
[330576087,1719581519337,-194.98971971,0.00022136,3]
[330576088,1719581519347,-3678.51,0.00022136,3]
[330576089,1719581519356,-643.23,0.00022136,3]
[330576090,1719581519366,-786.12,0.00022136,3]
[330576091,1719581519376,-1207.55,0.00022136,3]
[330576092,1719581519385,-500.0,0.00022136,3]
[330576093,1719581519395,-845.27,0.00022136,3]
[330576094,1719581519406,-754.57,0.00022136,3]
[330576095,1719581519415,-5337.73,0.00022136,3]
[330576096,1719581519430,-1386.67,0.00022136,3]
[330576097,1719581519440,-500.0,0.00022136,3]
[330576098,1719581519449,-1014.0,0.00022136,3]
[330576099,1719581519459,-911.43,0.00022136,3]
[330576100,1719581519470,-3812.46,0.00022136,3]
[330576101,1719581519480,-1466.36,0.00022136,3]
[330576102,1719581519490,-500.0,0.00022136,3]
[330576103,1719581519502,-1058.74,0.00022136,3]
[330576104,1719581519511,-997.7,0.00022136,3]
[330576105,1719581519521,-4068.22,0.00022136,3]
[330576106,1719581519531,-500.0,0.00022136,3]
[330576107,1719581519541,-500.0,0.00022136,3]
[330576108,1719581519551,-500.0,0.00022136,3]
[330576109,1719581519560,-500.0,0.00022136,3]
[330576110,1719581519570,-1837.07,0.00022136,3]
[330576111,1719581519581,-500.0,0.00022136,3]
[330576112,1719581519590,-1046.48,0.00022136,3]
[330576113,1719581519600,-500.0,0.00022136,3]
[330576114,1719581519609,-500.0,0.00022136,3]
[330576115,1719581519619,-500.0,0.00022136,3]
[330576116,1719581519629,-500.0,0.00022136,3]
[330576117,1719581519638,-500.0,0.00022136,3]
[330576118,1719581519648,-500.0,0.00022136,3]
[330576119,1719581519657,-500.0,0.00022136,3]
[330576120,1719581519667,-1790.37,0.00022136,3]
[330576121,1719581519677,-500.0,0.00022136,3]
[330576122,1719581519686,-2000.64,0.00022136,3]
[330576123,1719581519696,-1186.46,0.00022136,3]
[330576124,1719581519706,-500.0,0.00022136,3]
[330576125,1719581519716,-500.0,0.00022136,3]
[330576126,1719581519726,-719.3,0.00022136,3]
[330576127,1719581519735,-3251.06,0.00022136,3]
[330576128,1719581519746,-988.84,0.00022136,3]
[330576129,1719581519756,-638.89,0.00022136,3]
[330576130,1719581519765,-500.0,0.00022136,3]
[330576131,1719581519775,-500.0,0.00022136,3]
[330576132,1719581519784,-709.49,0.00022136,3]
[330576133,1719581519794,-500.0,0.00022136,3]
[330576134,1719581519803,-5851.89,0.00022136,3]
[330576135,1719581519814,-1243.35,0.00022136,3]
[330576136,1719581519824,-6549.41,0.00022136,3]
[330576137,1719581519836,-3127.02,0.00022136,3]
[330576138,1719581519845,-2930.95,0.00022136,3]
[330576139,1719581519855,-1121.54,0.00022136,3]
[330576140,1719581519864,-500.0,0.00022136,3]
[330576141,1719581519874,-500.0,0.00022136,3]
[330576142,1719581519884,-851.08,0.00022136,3]
[330576143,1719581519893,-776.56,0.00022136,3]
[330576144,1719581519903,-1849.31,0.00022136,3]
[330576145,1719581519913,-2636.86,0.00022136,3]
[330576146,1719581519923,-500.0,0.00022136,3]
[330576147,1719581519932,-500.0,0.00022136,3]
[330576148,1719581519942,-1462.6,0.00022136,3]
[330576149,1719581519952,-722.53,0.00022136,3]
[330576150,1719581519961,-500.0,0.00022136,3]
[330576151,1719581519971,-1920.81,0.00022136,3]
[330576152,1719581519981,-500.0,0.00022136,3]
[330576153,1719581520329,-1534.46,0.00022136,3]
[330576154,1719581520348,-1966.76,0.00022136,3]
[330576155,1719581520357,-1645.58,0.00022136,3]
[330576156,1719581520366,-3455.8,0.00022136,3]
[330576157,1719581520376,-1485.53,0.00022136,3]
[330576158,1719581520385,-2653.03,0.00022136,3]
[330576159,1719581520394,-500.0,0.00022136,3]
[330576160,1719581520403,-500.0,0.00022136,3]
[330576161,1719581520412,-1022.75,0.00022136,3]
[330576162,1719581520425,-500.0,0.00022136,3]
[330576163,1719581520439,-1315.88,0.00022136,3]
[330576164,1719581520449,-500.0,0.00022136,3]
[330576165,1719581520459,-500.0,0.00022136,3]
[330576166,1719581520469,-1627.89,0.00022136,3]
[330576167,1719581520479,-780.56,0.00022136,3]
[330576168,1719581520488,-500.0,0.00022136,3]
[330576169,1719581520497,-1377.58,0.00022136,3]
[330576170,1719581520506,-500.0,0.00022136,3]
[330576171,1719581520517,-4218.02,0.00022136,3]
[330576172,1719581520527,-500.0,0.00022136,3]
[330576173,1719581520536,-500.0,0.00022136,3]
[330576174,1719581520546,-165.34,0.00022136,3]
[330576175,1719581520555,-500.0,0.00022136,3]
[330576176,1719581520564,-674.62,0.00022136,3]
[330576177,1719581520574,-500.0,0.00022136,3]
[330576178,1719581520587,-514.37,0.00022136,3]
[330576179,1719581520597,-2978.97,0.00022136,3]
[330576180,1719581520608,-7525.21,0.00022136,3]
[330576181,1719581520618,-954.41,0.00022136,3]
[330576182,1719581520628,-1511.98,0.00022136,3]
[330576183,1719581520637,-763.25,0.00022136,3]
[330576184,1719581520647,-500.0,0.00022136,3]
[330576185,1719581520657,-810.94,0.00022136,3]
[330576186,1719581520667,-815.5,0.00022136,3]
[330576187,1719581520677,-500.0,0.00022136,3]
[330576188,1719581520686,-500.0,0.00022136,3]
[330576189,1719581520695,-1485.98,0.00022136,3]
[330576190,1719581520705,-500.0,0.00022136,3]
[330576191,1719581520715,-500.0,0.00022136,3]
[330576192,1719581520724,-500.0,0.00022136,3]